bitfinex/quotes_ETHUSD_20220123
["timestamp","ask_amount","ask_price","bid_price","bid_amount"]
[1642978061396,1.02608,2440.0,2439.5,0.66524175]
[1642978061795,11.36978409,2440.0,2439.5,0.66524175]
[1642978061997,11.36978409,2440.0,2439.5,1.69127035]
[1642978062199,10.34370409,2439.9,2439.5,1.69127035]
[1642978062403,0.44806176,2439.9,2439.5,1.69127035]
[1642978063650,0.44806176,2439.9,2439.6,2.05181]
[1642978063849,0.44806176,2439.9,2439.7,2.0517185]
[1642978064452,0.48002837,2439.9,2439.7,2.0517185]
[1642978064955,0.48002837,2440.1,2439.7,2.0517185]
[1642978065753,10.82373246,2440.1,2439.7,2.0517185]
[1642978066155,0.48002837,2440.1,2439.7,2.0517185]
[1642978066693,10.82373246,2440.1,2439.7,2.0517185]
[1642978066899,0.48002837,2440.1,2439.7,2.0517185]
[1642978068295,2.70887,2440.1,2439.7,0.57898071]
[1642978069504,2.70887,2440.1,2439.8,2.0516599]
[1642978070452,2.53556016,2440.1,2439.8,2.0516599]
[1642978070653,2.53556016,2440.1,2439.8,3.0774599]
[1642978070852,2.53556016,2440.1,2439.9,1.0258102]
[1642978071354,2.53556016,2440.3,2439.9,1.0258102]
[1642978072560,2.53556016,2440.3,2440.0,2.0515867]
[1642978072958,2.59655002,2440.3,2440.0,2.0515867]
[1642978073559,2.59655002,2440.3,2440.1,2.05145]
[1642978073903,2.59655002,2440.3,2440.1,5.1283546]
[1642978074107,2.59655002,2440.5,2440.2,1.02568]
[1642978074305,12.94025411,2440.5,2440.2,1.02568]
[1642978074506,2.59655002,2440.5,2440.2,1.02568]
[1642978074907,2.0204846,2440.5,2440.2,1.02568]
[1642978075313,2.0204846,2440.5,2440.2,1.18923505]
[1642978075510,2.0204846,2440.5,2440.3,2.0511841]
[1642978076308,1.63172865,2440.5,2440.3,2.0511841]
[1642978078350,1.69386437,2440.5,2440.3,2.0511841]
[1642978078958,1.69386437,2440.7,2440.4,0.592]
[1642978079161,1.69386437,2440.8,2440.4,2.56741]
[1642978079362,10.34370409,2441.1,2440.5,1.025318]
[1642978079565,1.69386437,2441.1,2440.6,17.39037361]
[1642978079758,1.69386437,2441.1,2440.6,16.03688003]
[1642978079958,3.83593166,2441.7,2440.7,3.05019]
[1642978080159,3.83593166,2441.7,2440.9,1.02509]
[1642978080160,1.69386437,2441.7,2440.9,1.02509]
[1642978080358,0.04,2442.4,2441.0,0.592]
[1642978080567,0.04,2442.4,2441.0,4.4766]
[1642978080757,0.04,2442.4,2441.0,7.9766]
[1642978080959,0.04,2442.4,2441.1,2.0502]
[1642978081158,0.04,2442.4,2441.5,2.0502086]
[1642978081399,0.04,2442.4,2441.5,1.0251]
[1642978081799,0.04,2442.4,2441.7,3.5]
[1642978081999,1.02511,2442.3,2441.7,3.5]
[1642978082400,0.68343555,2441.6,2441.5,1.0251]
[1642978083404,0.68343555,2441.6,2441.4,2.0502171]
[1642978084004,0.68343555,2441.6,2441.3,4.100429]
[1642978084305,0.68343555,2441.6,2441.3,4.692429]
[1642978084704,0.68343555,2441.6,2441.3,2.6422]
[1642978084907,0.68343555,2441.6,2441.4,3.5]
[1642978089505,0.68343555,2441.6,2441.4,2.36096078]
[1642978090305,0.68343555,2441.6,2441.4,3.38605078]
[1642978093175,0.68343555,2441.6,2441.4,2.36096078]
[1642978096401,0.68343555,2441.6,2441.4,1.65560171]
[1642978103564,0.68343555,2441.6,2441.4,1.49004154]
[1642978105731,0.68343555,2441.6,2441.5,1.642]
[1642978106541,0.68343555,2441.6,2441.5,1.542]
[1642978106735,0.68343555,2441.6,2441.5,4.15181362]
[1642978106936,0.68343555,2441.6,2441.5,1.542]
[1642978107136,0.68343555,2441.6,2441.5,5.14880219]
[1642978107335,0.63343555,2441.6,2441.5,5.14880219]
[1642978107538,0.63343555,2441.6,2441.5,5.95409219]
[1642978107755,0.63343555,2441.6,2441.5,37.30209219]
[1642978107956,0.04,2442.4,2441.6,2.0747485]
[1642978108153,0.04,2442.4,2441.9,3.5]
[1642978108352,0.04,2442.4,2442.0,0.592]
[1642978108756,0.04273632,2443.1,2442.1,2.86042112]
[1642978108757,0.04,2443.1,2442.1,2.86042112]
[1642978108961,0.04,2443.1,2442.2,0.592]
[1642978109161,0.04,2443.1,2442.3,3.6001988]
[1642978109359,0.04,2443.1,2442.4,0.592]
[1642978109758,0.04,2443.1,2442.4,4.4971]
[1642978110757,0.04,2443.1,2442.6,5.54892]
[1642978111060,6.6513,2443.8,2442.7,0.592]
[1642978111259,3.6081,2443.8,2442.7,0.53280001]
[1642978111503,3.9081,2443.8,2442.7,0.53280001]
[1642978112300,3.9081,2443.8,2442.8,1.05]
[1642978112301,3.18512351,2443.8,2442.8,1.05]
[1642978112502,24.85443,2443.9,2442.9,1.61645]
[1642978112503,0.37702351,2443.7,2442.9,1.61645]
[1642978112703,0.37702351,2443.8,2442.9,1.61645]
[1642978112902,0.37702351,2443.8,2443.0,3.5]
[1642978114312,0.3,2443.8,2443.0,3.5]
[1642978114511,25.15443,2443.9,2443.0,3.5]
[1642978114710,25.15443,2443.9,2443.1,1.02447]
[1642978115760,1.0245,2443.8,2443.1,1.02447]
[1642978118266,0.30138481,2443.7,2443.1,0.92202301]
[1642978120421,1.0245,2443.8,2443.1,0.92202301]
[1642978122521,1.0245,2443.8,2443.3,3.5]
[1642978123354,16.4,2443.9,2443.3,4.52441]
[1642978123753,16.35,2443.9,2443.3,4.52441]
[1642978124867,16.35,2443.9,2443.4,0.592]
[1642978125063,16.35,2443.9,2443.5,1.02421]
[1642978125261,16.35,2443.9,2443.5,0.65774701]
[1642978125861,16.35,2443.9,2443.6,0.592]
[1642978126261,16.35,2443.9,2443.6,2.64028]
[1642978127715,16.35,2443.9,2443.6,6.14028]
[1642978128618,16.35,2443.9,2443.7,0.00707015]
[1642978128921,16.35,2443.9,2443.8,0.592]
[1642978129317,1.8374,2443.9,2443.8,28.23624314]
[1642978129520,1.77036508,2443.9,2443.8,28.23624314]
[1642978129717,1.77036508,2443.9,2443.8,25.56576]
[1642978129917,0.04,2444.1,2443.8,29.06576]
[1642978130165,0.04,2444.1,2443.9,2.05734687]
[1642978130361,0.04,2444.1,2444.0,0.592]
[1642978130767,0.1,2444.6,2444.1,1.15]
[1642978130973,0.02,2444.8,2444.2,1.742]
[1642978131168,0.02,2444.8,2444.2,5.242]
[1642978131465,6.82809392,2445.8,2444.3,2.3]
[1642978131666,0.00273695,2445.7,2444.4,0.592]
[1642978131866,0.00273695,2445.7,2444.7,1.02365]
[1642978132272,8.45368,2445.9,2444.7,1.02365]
[1642978132469,8.25368,2445.9,2444.7,0.65735501]
[1642978132868,7.43,2445.8,2444.7,4.15735501]
[1642978133068,8.73,2445.8,2444.7,4.15735501]
[1642978133270,7.73,2445.8,2444.7,4.15735501]
[1642978134515,1.0,2445.7,2444.7,4.15735501]
[1642978134716,7.73,2445.8,2444.7,4.15735501]
[1642978135117,1.0,2445.7,2444.7,4.15735501]
[1642978135320,1.0,2445.7,2444.7,3.5]
[1642978135517,2.32376,2445.7,2444.7,3.5]
[1642978136315,2.32376,2445.7,2444.6,2.6393]
[1642978138255,1.02383,2445.5,2444.6,0.592]
[1642978138656,1.62383,2445.5,2444.6,0.592]
[1642978139461,2.31276222,2445.4,2444.4,5.81272201]
[1642978139661,3.31276222,2445.4,2444.5,0.592]
[1642978139862,2.16276222,2445.4,2444.5,0.592]
[1642978140265,2.16276222,2445.4,2444.4,5.81272201]
[1642978140468,2.16276222,2445.4,2444.2,2.63963]
[1642978140469,1.0239,2445.3,2444.2,2.63963]
[1642978140671,1.0239,2445.3,2444.0,3.5]
[1642978140672,0.0126216,2444.8,2444.0,3.5]
[1642978141064,0.0126216,2444.8,2443.7,6.42278994]
[1642978141065,0.0126216,2444.8,2443.7,3.8644]
[1642978141263,0.0126216,2444.8,2443.6,5.5823]
[1642978141264,0.0126216,2444.8,2443.6,1.8257]
[1642978141508,24.2626216,2444.8,2443.4,3.6195]
[1642978141708,24.2626216,2444.8,2443.3,0.592]
[1642978141709,3.58255994,2444.7,2443.7,2.323051]
[1642978141908,23.95,2444.6,2443.7,2.323051]
[1642978142128,3.55838994,2444.5,2443.7,2.323051]
[1642978142307,23.95,2444.4,2443.7,2.323051]
[1642978142504,24.25,2444.4,2443.7,2.323051]
[1642978142704,1.02449,2444.2,2443.7,2.323051]
[1642978142911,0.64529698,2444.0,2443.7,2.323051]
[1642978143114,0.64529698,2443.9,2443.0,4.96424]
[1642978143312,3.44138942,2443.9,2443.0,4.96424]
[1642978144011,0.64529698,2443.8,2443.0,2.64064]
[1642978144211,0.64529698,2443.6,2442.8,1.02455]
[1642978144614,0.64529698,2443.6,2442.8,1.03693922]
[1642978145252,0.64529698,2443.6,2442.8,1.02455]
[1642978145450,0.64529698,2443.6,2442.9,2.32334225]
[1642978146851,0.64529698,2443.6,2442.7,4.4384]
[1642978147352,0.64529698,2443.6,2442.8,1.0245085]
[1642978147552,0.64529698,2443.6,2442.9,1.0245]
[1642978148755,2.04915,2443.9,2442.7,1.02461]
[1642978148756,0.64529698,2443.4,2442.7,1.02461]
[1642978150318,1.66998698,2443.3,2442.4,3.9377]
[1642978150519,0.64529698,2443.1,2442.3,1.2216]
[1642978150828,0.64529698,2443.1,2442.0,3.7086]
[1642978150829,0.64529698,2442.9,2442.0,3.7086]
[1642978151019,0.64529698,2442.7,2441.9,11.077]
[1642978151218,0.64529698,2442.7,2441.9,7.194]
[1642978151417,0.64529698,2442.7,2441.7,3.8566258]
[1642978151816,0.64529698,2442.7,2442.0,2.04964]
[1642978152020,0.64529698,2442.7,2442.0,3.0745029]
[1642978152419,0.64529698,2442.7,2442.0,3.6665029]
[1642978153959,1.02483,2443.0,2442.0,2.64164]
[1642978153960,0.64529698,2442.6,2442.0,2.64164]
[1642978154160,0.64529698,2442.6,2442.0,2.04964]
[1642978154561,0.64529698,2442.6,2441.8,2.04977]
[1642978156264,1.67031698,2442.6,2441.8,2.04977]
[1642978156509,2.06882936,2442.6,2441.8,2.04977]
[1642978156710,2.06882936,2442.6,2441.6,2.049818]
[1642978156917,2.41569001,2442.5,2441.5,5.85232]
[1642978157111,2.81420239,2442.5,2441.5,3.8024]
[1642978157314,1.02513,2442.4,2441.5,3.8024]
[1642978157516,1.42364238,2442.4,2441.5,3.8024]
[1642978158119,1.42364238,2442.4,2441.6,2.32432625]
[1642978159117,0.39851238,2442.4,2441.6,2.32432625]
[1642978159318,0.49837359,2442.4,2441.6,2.32432625]
[1642978159518,0.49837359,2442.4,2441.5,4.3944]
[1642978160016,3.27936293,2442.7,2441.5,6.44426]
[1642978160267,0.49837359,2442.7,2441.5,6.44426]
[1642978160966,3.27390436,2442.7,2441.6,2.0498013]
[1642978161170,0.49837359,2442.7,2441.6,2.0498013]
[1642978161770,3.18779227,2442.7,2441.8,1.02494]
[1642978161972,0.79837359,2442.7,2441.8,1.02494]
[1642978162272,0.79837359,2442.7,2441.6,2.0498013]
[1642978162273,1.02504,2442.6,2441.6,2.0498013]
[1642978162472,0.35247692,2442.6,2441.6,2.0498013]
[1642978162771,0.35247692,2442.7,2441.6,2.0498013]
[1642978163372,1.37746692,2442.7,2441.6,2.0498013]
[1642978163777,1.67746692,2442.7,2441.8,1.02497]
[1642978165011,1.37746692,2442.7,2441.8,1.02497]
[1642978165412,3.16753428,2442.6,2441.5,6.44426]
[1642978165613,0.97509,2442.5,2441.5,6.44426]
[1642978165810,2.7829999,2442.4,2441.5,6.44426]
[1642978166011,0.39396167,2442.4,2441.5,6.44426]
[1642978166415,0.65361132,2442.4,2441.5,6.44426]
[1642978169780,0.65361132,2442.4,2441.6,0.3]
[1642978170180,0.65361132,2442.4,2441.5,6.44426]
[1642978170381,0.97509,2442.5,2441.5,6.44426]
[1642978171282,0.97509,2442.5,2441.5,7.4692956]
[1642978172209,0.97509,2442.5,2441.6,0.06994942]
[1642978172410,0.97509,2442.5,2441.5,6.44426]
[1642978172612,0.3,2442.4,2441.5,4.3944]
[1642978172811,1.02516,2442.3,2441.5,4.3944]
[1642978173212,1.02516,2442.3,2441.5,0.592]
[1642978174016,1.32516,2442.3,2441.5,0.592]
[1642978174815,1.32516,2442.3,2441.5,1.617143]
[1642978177362,1.02516,2442.3,2441.5,1.917143]
[1642978177565,3.2051,2443.3,2441.8,0.01328456]
[1642978177764,3.2051,2443.3,2442.2,1.0247028]
[1642978177962,0.00273634,2443.6,2442.3,0.92285379]
[1642978178164,3.8806,2443.7,2442.4,3.13489094]
[1642978178363,3.8806,2443.7,2442.5,0.01206111]
[1642978178560,3.8806,2443.7,2442.6,0.592]
[1642978178761,2.04936,2443.6,2442.6,0.592]
[1642978179011,5.20518,2443.7,2442.8,1.02456]
[1642978179215,1.32458,2443.7,2442.8,1.02456]
[1642978179611,1.32458,2443.7,2442.8,2.26256]
[1642978179812,1.02458,2443.7,2442.8,2.26256]
[1642978180012,5.37072376,2443.9,2442.9,2.54289094]
[1642978180220,1.1486,2444.0,2443.1,1.02442]
[1642978180221,1.02444,2444.0,2443.1,1.02442]
[1642978180414,0.13819997,2444.1,2443.2,0.592]
[1642978181014,0.13819997,2444.1,2443.3,1.0243283]
[1642978181211,0.13819997,2444.1,2443.4,0.592]
[1642978181411,0.13819997,2444.1,2443.2,2.6406566]
[1642978181412,0.43819997,2444.1,2443.2,2.6406566]
[1642978181817,0.43819997,2444.1,2443.4,1.02427]
[1642978182212,0.13819997,2444.1,2443.4,1.02427]
[1642978182860,0.43819997,2444.1,2443.4,1.02427]
[1642978183064,0.43819997,2444.1,2443.5,1.0243404]
[1642978183665,0.43819997,2444.1,2443.5,2.0486604]
[1642978185067,1.46256997,2444.1,2443.5,1.02432]
[1642978187918,1.02428,2444.4,2443.5,3.58199518]
[1642978188117,1.32428,2444.4,2443.6,1.0242522]
[1642978188316,1.32428,2444.4,2443.7,1.02419]
[1642978189919,1.32428,2444.4,2443.8,1.0241825]
[1642978194528,1.32428,2444.4,2443.9,0.01638051]
[1642978194730,1.32428,2444.4,2443.8,1.0241825]
[1642978194731,1.32428,2444.4,2443.7,1.02419]
[1642978194936,1.0243,2444.3,2443.4,4.0970224]
[1642978195134,1.0243,2444.3,2443.2,1.2068]
[1642978195330,9.4543,2444.3,2443.2,1.2068]
[1642978195530,9.3043,2444.3,2443.0,3.8352]
[1642978195731,0.012181,2444.1,2443.0,3.8352]
[1642978196336,0.012181,2444.1,2442.8,3.8132]
[1642978196534,0.08685181,2444.1,2442.9,2.04891]
[1642978196932,1.02458,2443.9,2442.9,3.0734532]
[1642978197132,1.32458,2443.9,2442.9,3.0734532]
[1642978197332,1.3,2443.9,2442.9,3.0734532]
[1642978197540,0.3,2443.9,2442.9,3.0734532]
[1642978197754,2.34916,2444.0,2442.9,3.0734532]
[1642978198155,1.02455,2443.6,2442.9,3.0734532]
[1642978198355,1.02455,2443.6,2442.9,2.04891]
[1642978198556,1.32455,2443.6,2442.7,4.0981029]
[1642978198754,0.3,2443.6,2442.7,4.0981029]
[1642978199160,1.02464,2443.4,2442.6,3.72]
[1642978199562,1.32464,2443.4,2442.6,3.72]
[1642978199859,2.34938,2443.5,2442.6,3.72]
[1642978201062,1.02474,2443.2,2442.6,3.72]
[1642978201262,1.02474,2443.2,2442.5,3.0739683]
[1642978201514,1.02474,2443.2,2442.6,1.0247]
[1642978201715,2.7746427,2443.4,2442.6,1.0247]
[1642978201918,5.09978043,2443.5,2442.6,1.0247]
[1642978202315,1.0,2443.4,2442.6,1.0247]
[1642978202517,2.34938,2443.5,2442.6,1.0247]
[1642978202918,5.13453777,2443.5,2442.6,1.0247]
[1642978203125,2.02466,2443.4,2442.6,1.0247]
[1642978203919,4.79231357,2443.4,2442.5,2.04927]
[1642978204124,4.79231357,2443.4,2442.4,1.1628]
[1642978204623,1.02466,2443.4,2442.4,1.1628]
[1642978205273,1.02457,2443.6,2442.4,3.5120656]
[1642978205466,1.32457,2443.6,2442.4,3.2120656]
[1642978206270,3.7586765,2443.5,2442.6,1.02471]
[1642978206471,3.79997671,2443.5,2442.6,1.02471]
[1642978206769,1.02462,2443.5,2442.6,1.02471]
[1642978207570,3.77069232,2443.5,2442.5,2.04929]
[1642978207776,3.76140937,2443.5,2442.5,2.04929]
[1642978207972,1.02462,2443.5,2442.5,2.04929]
[1642978208170,3.77341547,2443.5,2442.5,2.04929]
[1642978208371,1.02462,2443.5,2442.5,2.04929]
[1642978208570,3.77018332,2443.5,2442.5,2.04929]
[1642978208771,3.76146024,2443.5,2442.5,2.04929]
[1642978209017,1.02462,2443.5,2442.5,2.04929]
[1642978209418,3.76304883,2443.5,2442.5,2.04929]
[1642978209617,3.78503462,2443.5,2442.5,2.04929]
[1642978209818,1.02462,2443.5,2442.5,2.04929]
[1642978210016,1.02462,2443.5,2442.6,1.02471]
[1642978210218,3.77337265,2443.5,2442.6,1.02471]
[1642978210423,1.02462,2443.5,2442.6,1.02471]
[1642978210618,3.84129843,2443.5,2442.6,1.02471]
[1642978211221,3.77819361,2443.5,2442.6,1.02471]
[1642978211419,1.0,2443.4,2442.5,2.04929]
[1642978211623,1.02479,2443.2,2442.4,1.1628]
[1642978211822,1.02479,2443.2,2441.9,3.5]
[1642978211823,3.09217913,2443.1,2441.9,3.5]
[1642978212021,23.95,2443.0,2441.7,3.648]
[1642978212222,3.27663106,2442.9,2441.7,3.648]
[1642978212422,3.57663106,2442.9,2441.7,3.648]
[1642978212664,1.02504,2442.7,2441.6,12.8314879]
[1642978212867,1.39531729,2442.6,2441.6,12.8314879]
[1642978213067,1.39531729,2442.6,2441.6,9.7594879]
[1642978214168,1.02514,2442.4,2441.6,9.7594879]
[1642978214567,1.02514,2442.4,2441.6,4.6901879]
[1642978214867,2.53669228,2442.4,2441.6,3.6651]
[1642978215067,1.02516,2442.2,2441.6,3.6651]
[1642978215469,0.97516,2442.2,2441.6,3.6651]
[1642978215869,1.27516,2442.2,2441.3,1.16074052]
[1642978216174,1.27516,2442.2,2441.4,2.32423319]
[1642978216175,1.02527,2442.0,2441.4,2.32423319]
[1642978217012,2.7353038,2441.9,2441.4,2.32423319]
[1642978217213,1.02538,2441.8,2441.4,2.32423319]
[1642978217417,1.02538,2441.8,2441.2,2.32423319]
[1642978220020,1.02538,2441.8,2440.9,2.32423319]
[1642978220455,2.68986537,2441.7,2440.9,2.32423319]
[1642978220658,1.02545,2441.6,2440.9,2.32423319]
[1642978221761,0.3,2442.0,2440.9,2.32423319]
[1642978222060,1.0,2442.1,2440.9,2.32423319]
[1642978222460,2.73021803,2442.0,2440.9,2.32423319]
[1642978222762,4.05546803,2442.0,2440.9,3.34956319]
[1642978223159,2.05083,2441.9,2440.9,3.34956319]
[1642978223365,2.73124214,2441.8,2440.9,3.34956319]
[1642978223758,2.73124214,2441.8,2441.0,2.32423319]
[1642978224015,1.02542,2441.7,2441.0,2.32423319]
[1642978225015,1.02542,2441.7,2440.9,2.32423319]
[1642978227964,2.05083,2441.9,2441.0,1.02533]
[1642978228167,1.0253,2442.0,2441.1,2.56307261]
[1642978228366,1.1565,2442.4,2441.1,2.56307261]
[1642978228677,0.3,2442.1,2440.9,4.86712413]
[1642978228972,0.63528518,2442.3,2441.2,2.32423319]
[1642978229569,0.03528518,2442.3,2441.2,2.32423319]
[1642978229773,1.3,2442.4,2441.2,2.32423319]
[1642978229774,1.0253,2441.9,2441.2,2.32423319]
[1642978229971,1.3253,2441.9,2441.0,2.32423319]
[1642978231432,1.0253,2441.9,2441.0,2.32423319]
[1642978231613,1.0253,2441.9,2441.1,1.02525]
[1642978232513,1.0253,2441.9,2441.1,4.52525]
[1642978232716,1.0253,2441.9,2441.2,2.32423319]
[1642978233716,1.3253,2441.9,2441.2,2.32423319]
[1642978234122,1.02535,2441.7,2441.2,2.32423319]
[1642978234320,0.3,2441.9,2441.2,2.32423319]
[1642978234520,2.35067,2442.1,2441.2,2.32423319]
[1642978235157,1.02529,2441.9,2441.1,1.02525]
[1642978235357,1.32529,2441.9,2441.1,1.02525]
[1642978235963,1.32529,2441.9,2441.1,1.02385704]
[1642978236574,1.02535,2441.8,2441.1,1.02385704]
[1642978236964,1.02535,2441.8,2440.9,4.101035]
[1642978237168,1.02535,2441.8,2441.0,3.5]
[1642978237565,1.02535,2441.8,2441.1,2.32475175]
[1642978238769,1.02535,2441.8,2440.9,2.05054]
[1642978239421,1.02525,2442.0,2440.9,2.35054]
[1642978239618,1.02525,2442.0,2441.1,2.05041]
[1642978239820,1.32525,2442.0,2441.1,2.05041]
[1642978240021,1.3,2442.1,2441.1,2.05041]
[1642978240419,0.3,2442.1,2441.1,2.05041]
[1642978240719,1.0,2442.1,2441.1,2.05041]
[1642978240919,2.35054,2442.2,2441.1,2.05041]
[1642978241118,1.0253,2441.9,2441.1,2.05041]
[1642978241320,1.0253,2441.9,2441.2,2.32463839]
[1642978241520,1.3253,2441.9,2441.2,2.32463839]
[1642978241723,0.3,2441.9,2441.2,2.32463839]
[1642978242123,0.3,2442.1,2441.2,2.32463839]
[1642978242321,3.35054,2442.2,2441.2,2.32463839]
[1642978243165,1.02534,2441.8,2441.2,2.32463839]
[1642978243368,2.35054,2442.2,2441.3,2.5498892]
[1642978243566,2.35054,2442.2,2441.2,2.32463839]
[1642978244275,1.02517,2442.1,2441.3,1.0251897]
[1642978245073,1.02425856,2442.1,2441.4,2.32463839]
[1642978245675,1.02425856,2442.1,2441.4,3.34977839]
[1642978246075,2.02425856,2442.1,2441.4,2.32463839]
[1642978246509,2.02425856,2442.1,2441.2,5.82463839]
[1642978246710,1.02425856,2442.1,2441.2,5.82463839]
[1642978247316,1.02425856,2442.1,2441.2,2.32463839]
[1642978247717,1.02425856,2442.1,2441.2,1.0252606]
[1642978247914,1.02425856,2442.1,2441.2,1.02528]
[1642978248114,1.02425856,2442.1,2441.2,3.56369401]
[1642978248323,1.02425856,2442.1,2441.2,3.51910236]
[1642978248518,14.58821057,2442.7,2441.3,0.3]
[1642978248519,0.13819997,2442.7,2441.3,0.3]
[1642978248718,0.13819997,2442.7,2441.4,2.54289094]
[1642978248915,0.13819997,2442.7,2441.9,1.0248574]
[1642978249121,0.13819997,2442.7,2442.0,0.00410246]
[1642978249316,0.13819997,2442.7,2441.8,2.0497147]
[1642978250018,1.02493,2442.6,2442.1,1.0248998]
[1642978250260,1.02493,2442.6,2442.1,1.02485]
[1642978250863,1.02493,2442.6,2441.6,5.2111]
[1642978251061,1.02493,2442.6,2441.7,3.5]
[1642978251062,1.32493,2442.6,2441.7,3.5]
[1642978251263,1.02511,2442.3,2441.7,3.5]
[1642978252063,1.02511,2442.3,2441.7,5.54996]
[1642978252267,1.02511,2442.3,2441.7,3.0749839]
[1642978252466,1.02511,2442.3,2441.8,1.02502]
[1642978253266,2.05,2442.6,2441.9,1.0249448]
[1642978253466,1.16313997,2442.7,2442.0,1.02494]
[1642978253467,0.13819997,2442.7,2442.0,1.02494]
[1642978254520,1.02493,2442.6,2442.0,2.0498481]
[1642978255123,1.02493,2442.6,2441.9,2.04982]
[1642978255526,1.02493,2442.6,2441.6,5.2111]
[1642978255722,1.02493,2442.6,2441.7,1.0251]
[1642978256223,2.90837613,2442.5,2441.7,1.0251]
[1642978256422,1.02512,2442.3,2441.8,2.32429377]
[1642978257661,3.77422426,2442.3,2441.8,2.32429377]
[1642978258060,1.02512,2442.3,2441.8,2.32429377]
[1642978258861,3.78483944,2442.3,2441.8,2.32429377]
[1642978259067,3.75269184,2442.3,2441.7,2.32429377]
[1642978259266,4.05269184,2442.3,2441.7,2.32429377]
[1642978259466,1.02527,2442.2,2441.7,2.32429377]
[1642978259667,2.91258619,2442.1,2441.7,2.32429377]
[1642978259867,2.35051,2442.1,2441.7,2.32429377]
[1642978260271,2.35051,2442.1,2441.4,2.32429377]
[1642978260467,2.05051,2442.1,2441.4,2.32429377]
[1642978260667,2.84930063,2442.4,2441.5,1.025129]
[1642978260867,3.14930063,2442.4,2441.5,1.02517]
[1642978261070,0.3,2442.4,2441.5,1.02517]
[1642978261510,0.13819997,2442.7,2441.6,3.64937217]
[1642978261812,0.13819997,2442.7,2441.6,7.37120226]
[1642978262019,0.13819997,2442.8,2441.7,0.3]
[1642978262211,0.13819997,2442.8,2441.7,1.3]
[1642978262412,0.13819997,2442.8,2441.7,4.0214]
[1642978262719,0.13819997,2442.8,2441.9,1.0248199]
[1642978263129,1.16308997,2442.8,2441.9,1.3248199]
[1642978264015,1.16308997,2442.8,2442.2,1.0248249]
[1642978264213,1.16308997,2442.8,2442.2,2.0496649]
[1642978264816,1.16308997,2442.8,2442.2,1.02484]
[1642978265265,1.16308997,2442.8,2441.9,2.04974]
[1642978266062,1.16308997,2442.8,2442.1,1.02492]
[1642978266661,3.98008869,2442.8,2442.0,2.04963]
[1642978267561,3.98008869,2442.8,2441.9,1.02498]
[1642978267767,1.16308997,2442.8,2441.9,1.02498]
[1642978267962,1.46308997,2442.8,2441.9,2.0499102]
[1642978268163,1.0249,2442.6,2441.9,1.0249302]
[1642978268927,2.04956,2443.1,2442.3,1.0247643]
[1642978269324,2.04956,2443.1,2442.1,2.0495286]
[1642978269521,1.02483,2442.8,2442.2,0.3]
[1642978269722,1.02483,2442.8,2442.1,2.0495286]
[1642978269922,1.02483,2442.8,2442.1,1.02488]
[1642978270924,1.02483,2442.8,2442.0,2.04971]
[1642978271125,3.75325246,2442.8,2442.0,2.04971]
[1642978271526,4.05325246,2442.8,2442.0,2.04971]
[1642978271724,1.02501,2442.6,2442.0,2.04971]
[1642978273767,1.22484,2442.8,2442.0,2.04971]
[1642978274169,1.22484,2442.8,2442.0,0.54971]
[1642978274572,5.07656,2443.0,2442.0,0.54971]
[1642978274774,2.34972,2443.0,2442.3,1.024875]
[1642978274973,2.04972,2443.0,2442.3,1.024875]
[1642978277025,1.0248,2442.9,2442.3,1.024875]
[1642978278928,0.3,2442.9,2442.3,1.024875]
[1642978279127,1.02491,2442.7,2442.3,1.024875]
[1642978281376,3.75335913,2442.7,2442.2,2.0496077]
[1642978281573,1.02491,2442.7,2442.2,2.0496077]
[1642978282573,1.02491,2442.7,2441.9,7.0596829]
[1642978282773,3.82300559,2442.7,2441.9,7.0596829]
[1642978282972,3.82300559,2442.7,2442.0,2.32423738]
[1642978283175,1.02491,2442.7,2442.0,2.32423738]
[1642978284714,1.02491,2442.7,2442.0,3.34917738]
[1642978284914,1.02491,2442.7,2442.1,1.0249516]
[1642978287019,3.79073559,2442.7,2442.1,1.0249516]
[1642978287218,1.02491,2442.7,2442.1,1.0249516]
[1642978287419,3.78299292,2442.7,2442.1,1.0249516]
[1642978287677,3.78420604,2442.7,2442.1,1.0249516]
[1642978288078,3.78420604,2442.7,2442.2,2.32427428]
[1642978288279,1.02491,2442.7,2442.2,2.32427428]
[1642978288477,3.72623174,2442.7,2442.2,2.32427428]
[1642978288682,4.02623174,2442.7,2442.2,2.32427428]
[1642978288876,1.02507,2442.5,2442.2,2.32427428]
[1642978289085,3.79211805,2442.5,2442.2,2.32427428]
[1642978289482,0.3,2442.4,2442.2,2.32427428]
[1642978289685,6.39091777,2442.3,2441.7,3.5]
[1642978289883,4.99835583,2442.3,2441.7,3.5]
[1642978290087,2.26115,2442.3,2441.6,2.0502383]
[1642978291615,2.26115,2442.3,2441.7,1.025119]
[1642978291817,2.26115,2442.3,2441.7,2.050219]
[1642978292216,2.26115,2442.3,2441.7,1.025119]
[1642978292418,1.236,2442.2,2441.7,1.025119]
[1642978292616,1.32515,2442.3,2441.7,1.025119]
[1642978292617,1.236,2442.0,2441.7,1.025119]
[1642978293821,1.236,2442.0,2441.8,1.02506]
[1642978295669,1.236,2442.0,2441.8,2.0501287]
[1642978295870,2.26113,2442.0,2441.9,2.32430125]
[1642978296870,1.236,2442.0,2441.9,2.32430125]
[1642978300915,1.236,2442.1,2441.9,2.32430125]
[1642978301227,2.26108,2442.1,2441.9,2.32430125]
[1642978302417,4.91283884,2442.1,2441.9,2.32430125]
[1642978302665,2.26108,2442.1,2441.9,2.32430125]
[1642978303468,2.26108,2442.1,2441.8,2.0501587]
[1642978305971,2.26108,2442.1,2441.9,2.32434456]
[1642978306811,2.26108,2442.1,2441.9,3.34943906]
[1642978307211,2.26108,2442.1,2441.9,1.0250945]
[1642978308915,2.26108,2442.1,2441.9,2.0501245]
[1642978310467,2.26108,2442.1,2441.9,1.0250945]
[1642978311070,2.26108,2442.1,2442.0,2.32429901]
[1642978316620,2.26108,2442.1,2442.0,2.32280667]
[1642978317672,1.236,2442.2,2442.0,2.32280667]